[Event "45th FIDE Olympiad 2024"]
[Site "Budapest"]
[Date "2024.09.11"]
[Round "1.60"]
[White "Onyshchuk, Volodymyr"]
[Black "Amdouni, Zoubaier"]
[Result "1-0"]
[ECO "B31"]
[WhiteElo "2610"]
[BlackElo "2151"]
[Annotator "TA"]
[PlyCount "85"]
[EventDate "2024.09.05"]
[EventType "team-tourn"]
[EventCountry "HUN"]
[SourceTitle "playchess.com"]
[Source "ChessBase"]
[SourceQuality "1"]
[WhiteTeam "Ukraine"]
[BlackTeam "Tunisia"]
[WhiteTeamCountry "UKR"]
[BlackTeamCountry "TUN"]
[TimeControl "40/5400+30:1800+30"]

{[%evp 16,85,25,24,19,14,23,26,21,27,0,23,68,60,47,34,40,28,56,59,66,68,64,66,109,114,93,100,110,93,97,104,116,72,79,84,72,42,122,114,87,87,231,244,238,240,235,243,410,377,505,515,940,552,545,556,703,675,574,469,651,552,544,518,1824,1719,29982,29983,29983,2831,29988,29989]} 1. e4 {[%emt 0:00:21]} c5 {[%emt 0:00:04]} 2. Nf3 {[%emt 0:00:10]} Nc6 {[%emt 0:00:04]} 3. Bb5 {[%emt 0:00:11]} g6 {[%emt 0:00:16]} 4. Bxc6 {[%emt 0:00:57]} dxc6 {[%emt 0:00:06]} 5. h3 {[%emt 0:00:11]} Bg7 {[%emt 0:00:06]} 6. d3 {[%emt 0:00:21]} Nf6 {[%emt 0:00:35]} 7. Nc3 {[%emt 0:00:47]} Nd7 {[%emt 0:00:39]} 8. Be3 {[%emt 0:00:46]} e5 {[%emt 0:00:24]} 9. Qd2 {[%emt 0:00:08]} h6 {[%emt 0:00:04]} 10. O-O {[%emt 0:02:47]} b6 {[%emt 0:00:05]} 11. Nh2 {[%emt 0:07:31]} Nf8 {[%emt 0:00:14] White has an edge.} 12. f4 {[%emt 0:01:34]} exf4 {[%emt 0:00:04]} 13. Bxf4 {[%emt 0:02:30]} Be6 {[%emt 0:00:37]} 14. Nf3 {[%emt 0:10:35]} g5 {[%emt 0:22:30]} 15. Bh2 {[%emt 0:00:39]} Ng6 {[%emt 0:01:26]} 16. Rae1 {[%emt 0:02:46]} f6 {[%emt 0:03:47]} 17. Nd1 {[%emt 0:08:12]} Qd7 {[%emt 0:09:46][%cal Oe8c8]} 18. Ne3 {[%emt 0:02:44]} O-O-O {[%emt 0:02:36][%cal Oh6h5] [#]} 19. Nf5 $1 {[%emt 0:01:07]} Bxf5 {[%emt 0:08:07]} (19... Kb7 20. Nxg7) 20. exf5 {[%emt 0:00:06]} Ne7 {[%emt 0:00:05]} 21. g4 {[%emt 0:00:57]} h5 {[%emt 0:10:25]} 22. Re6 {[%emt 0:03:11] Qe1 is the strong threat. White is more active.} hxg4 {[%emt 0:00:17]} 23. hxg4 {[%emt 0:00:02]} Nd5 {[%emt 0:18:08]} 24. Rfe1 {[%emt 0:11:54][%cal Bf1e1,Be1e4,Be4e6][%mdl 32]} Bf8 {[%emt 0:06:24]} 25. R1e4 {[%emt 0:05:07]} Rh6 {[%emt 0:03:58]} 26. Qe1 {[%emt 0:06:06]} Nc7 {[%emt 0:07:44]} (26... Kb7 $14) 27. Bxc7 $16 {[%emt 0:02:51]} Qxc7 {[%emt 0:00:13]} 28. Re8 {[%emt 0:01:38] Black must now prevent Rxd8+.} Qd7 {[%emt 0:03:09] [#] Black cannot hold the game after this.} (28... Qf7 $16) 29. R4e6 $1 $18 {[%emt 0:08:54]} (29. Rxd8+ Kxd8 30. Re6 Kc7) 29... Bd6 {[%emt 0:00:06] [#]} 30. Rxd8+ {[%emt 0:00:49]} Kxd8 {[%emt 0:00:06] Black is weak on the light squares} 31. Nxg5 {[%emt 0:00:41][%cal Oe6d6] Hoping for Rxd6!} Bh2+ {[%emt 0:01:28]} (31... Be5 {was worth a try.} 32. Qe4 Rh8) 32. Kg2 {[%emt 0:00:47]} Be5 {[%emt 0:02:16]} 33. Nf3 {[%emt 0:07:05] Wards off Rh2+} Qh7 {[%emt 0:00:01]} (33... Bxb2 $142 34. c3 (34. Qe4 Rh7 $18) 34... Rh8 35. Rxf6 Rg8) 34. Rxe5 {[%emt 0:01:39]} (34. Rxc6 $2 {perishes.} Rh2+ 35. Nxh2 Qxh2+ 36. Kf3 Qf4+ (36... Qxc2 $2 37. Qf1 $16) (36... Qh3+ $2 37. Ke2 $19) 37. Ke2 Qxg4+ 38. Kd2 (38. Ke3 $2 Bf4+ 39. Kf2 Bg3+ 40. Ke3 Bxe1 $19) 38... Qg2+ (38... Qxf5 $2 39. Qh1 $18) 39. Kc1 Qxc6 $19) 34... fxe5 {[%emt 0:00:25][%mdl 4096] Endgame. KQR-KQN} 35. g5 {[%emt 0:01:08]} Rd6 {[%emt 0:01:06]} 36. Qxe5 {[%emt 0:00:55]} Qe7 {[%emt 0:00:06]} 37. Qf4 {[%emt 0:00:32]} Rd5 {[%emt 0:01:00]} 38. f6 {[%emt 0:00:52][%cal Bf5f6,Bf6f7][%mdl 32]} Qd6 {[%emt 0:00:24]} 39. Qe4 {[%emt 0:01:22] Threatens to win with f7.} c4 {[%emt 0:00:33]} (39... Rxg5+ $142 40. Nxg5 Qxf6) 40. f7 {[%emt 0:00:47]} Qe7 {[%emt 0:00:25]} 41. Qf4 {[%emt 0:31:04]} (41. Qxc4 Qxf7 42. Kg3 (42. Qxc6 Rc5 $16) 42... Qe6 $11) 41... Qf8 {[%emt 0:01:42]} 42. g6 {[%emt 0:00:00]} (42. Qxc4 Qxf7 43. Qxc6 Rc5 44. Qd6+ Kc8 $11) (42. Qf6+ $142 Kc7 43. g6 (43. dxc4 Rd6 $18) 43... b5 44. g7 Qc5 45. f8=Q (45. g8=R Rf5 $18) 45... cxd3 46. Q6f7+ (46. g8=R Qxc2+ 47. Kg3 Kb6 48. Qb8+ Ka6 49. Rg7 Qc5) 46... Kb6 47. Qb8+ (47. g8=R Ka6 48. b4 Qxf8 49. Rxf8 Rc5 50. Rb8 Rxc2+ 51. Kg3 Rg2+ 52. Kxg2 d2 53. Qb7#) 47... Ka6 48. Qbb7+ (48. g8=R Qxc2+ 49. Kg3 Qc5 50. Qfb7+ Ka5 51. Q7xa7+ Qxa7 52. Qxa7+ Kb4 53. Rg4+ Rd4 54. Rxd4#) 48... Ka5 49. Qfc7+ (49. g8=B Qxc2+ 50. Kg3 Qxb2 51. Qxa7+ Kb4 52. Qf4+ Qd4 53. Nxd4 Rg5+ 54. Qxg5 Kc3 55. Qac5+ Kb2 56. Qgc1#) (49. Qxa7+ Qxa7 50. Qxa7+ Kb4 51. c3+ Kc4 52. Nd2#) 49... Ka4 50. Qa6+ (50. g8=R Qxc2+ 51. Kg3 Qxb2 52. Qxa7+ Kb4 53. Rg4+ Rd4 54. Qca5+ Kc4 55. Rxd4+ Qxd4 56. Qxd4#) 50... Kb4 51. Qca5+ Kc4 52. Qc3#) 42... cxd3 {[%emt 0:01:15]} 43. Qf6+ {[%emt 0:00:00] Weighted Error Value: White=0.22 (precise) /Black=0.73.  Mistake:       	---       	Black=5      Inaccurate:     	White=2     	Black=5      OK:         	White=15    	Black=11     Best:        	White=6     	Black=2      Strong:       	White=1     	---} 1-0

[Event "45th FIDE Olympiad 2024"]
[Site "Budapest"]
[Date "2024.09.11"]
[Round "1.61"]
[White "Sarana, Alexey"]
[Black "Juarez Flores, Carlos A."]
[Result "1-0"]
[ECO "D34"]
[WhiteElo "2713"]
[BlackElo "2308"]
[Annotator "TA"]
[PlyCount "75"]
[EventDate "2024.09.05"]
[EventType "team-tourn"]
[EventCountry "HUN"]
[SourceTitle "playchess.com"]
[Source "ChessBase"]
[SourceQuality "1"]
[WhiteTeam "Serbia"]
[BlackTeam "Guatemala"]
[WhiteTeamCountry "SRB"]
[BlackTeamCountry "GUA"]
[TimeControl "40/5400+30:1800+30"]

{[%evp 21,75,25,37,38,46,42,66,66,63,46,40,0,5,15,13,0,25,28,20,13,33,22,14,23,19,18,55,31,25,17,51,53,47,54,69,27,51,34,233,224,233,216,228,142,158,83,93,91,85,80,345,371,363,362,367,355]} 1. d4 {[%emt 0:00:02]} d5 {[%emt 0:00:09]} 2. c4 {[%emt 0:00:04]} e6 {[%emt 0:00:06]} 3. Nf3 {[%emt 0:00:12]} Be7 {[%emt 0:00:21]} 4. g3 {[%emt 0:02:17]} Nf6 {[%emt 0:00:26]} 5. Bg2 {[%emt 0:00:05]} O-O {[%emt 0:00:26]} 6. Nc3 {[%emt 0:00:06]} c5 {[%emt 0:01:06]} 7. cxd5 {[%emt 0:03:04]} exd5 {[%emt 0:00:34]} 8. O-O {[%emt 0:00:13]} Nc6 {[%emt 0:00:27]} 9. dxc5 {[%emt 0:00:13]} Bxc5 {[%emt 0:00:17]} 10. Bg5 {[%emt 0:00:09]} Be6 {[%emt 0:00:36]} 11. Rc1 {[%emt 0:11:54]} Be7 {[%emt 0:02:23]} 12. Be3 {[%emt 0:03:44]} Qa5 {[%emt 0:05:44]} 13. Qa4 {[%emt 0:06:24]} Rfd8 {[%emt 0:10:03]} 14. Qxa5 {[%emt 0:10:17] White is slightly better.} Nxa5 {[%emt 0:00:15][%cal Bc6a5,Ba5c4,Bc4b2][%mdl 32]} 15. Nb5 {[%emt 0:00:03][%cal Ob5c7] Nc7! would now be deadly.} Bd7 {[%emt 0:09:25]} 16. Nbd4 {[%emt 0:10:14]} Nc4 {[%emt 0:01:58][%cal Oc4e3] Against Ne5} 17. Bf4 {[%emt 0:00:03]} Nxb2 {[%emt 0:01:16]} 18. Rb1 {[%emt 0:02:11]} Na4 {[%emt 0:05:56]} 19. Rxb7 {[%emt 0:00:02]} Nc5 {[%emt 0:00:14]} 20. Rb2 {[%emt 0:01:06]} Na4 {[%emt 0:02:41]} 21. Rb3 {[%emt 0:02:52]} Nc5 {[%emt 0:00:23]} 22. Rbb1 {[%emt 0:00:23]} Nfe4 {[%emt 0:08:23]} 23. Rfc1 {[%emt 0:01:55]} f6 {[%emt 0:09:08] Dodges Ne5} 24. Nd2 {[%emt 0:00:59]} Rac8 {[%emt 0:00:43]} 25. h4 {[%emt 0:07:03][%cal Bh2h4,Bh4h5][%mdl 32]} h6 {[%emt 0:06:15]} 26. Be3 {[%emt 0:04:58]} a6 {[%emt 0:03:34]} 27. Nxe4 {[%emt 0:04:06]} dxe4 {[%emt 0:02:53]} 28. Rb6 {[%emt 0:00:16] White is more active.} Kf7 {[%emt 0:05:01]} 29. h5 {[%emt 0:01:13]} Bg4 $2 {[%emt 0:02:38] [#]} (29... Rb8 $14 30. Rxb8 Rxb8) 30. Nc6 $18 {[%emt 0:02:21]} Rd5 {[%emt 0:05:07]} 31. Nxe7 {[%emt 0:04:37]} Kxe7 {[%emt 0:00:19]} 32. Rb4 {[%emt 0:04:27] And now Rbc4 would win.} Be6 {[%emt 0:09:35][%cal Bg4e6,Be6d7,Bd7c8][%mdl 32]} 33. f3 {[%emt 0:08:28]} ({But not} 33. Bxe4 $6 Nxe4 34. Rxc8 (34. Rxe4 $2 Rxc1+ 35. Bxc1 Rd1+ 36. Kg2 Rxc1 $19) 34... Bxc8 $11) (33. Rbc4 $142 Rd1+ 34. Rxd1 Bxc4 35. Rc1) 33... a5 $16 {[%emt 0:03:48]} 34. Rb6 {[%emt 0:00:11]} ({Don't do} 34. fxe4 Rd1+ 35. Rxd1 axb4 $14) 34... Bd7 {[%emt 0:02:29]} 35. fxe4 {[%emt 0:01:22]} Nxe4 {[%emt 0:01:52][%mdl 8192] [#]} 36. Rxc8 $1 $18 {[%emt 0:00:20]} ({And not} 36. Bxe4 Rxc1+ 37. Bxc1 Rd1+ 38. Kg2 Rxc1 $11) 36... Bxc8 {[%emt 0:00:01]} 37. Bxe4 {[%emt 0:01:01] This pair of bishops is nice.} Re5 {[%emt 0:00:02]} 38. Bb7 $1 {[%emt 0:00:16] Weighted Error Value: White=0.13 (very precise) /Black=0.36.  Loses game:     	---       	Black=2      Mistake:       	White=1     	---        Inaccurate:     	White=3     	Black=2      OK:         	White=8     	Black=9      Best:        	White=2     	Black=3      Strong:       	White=2     	---} 1-0

[Event "45th FIDE Olympiad 2024"]
[Site "Budapest"]
[Date "2024.09.11"]
[Round "1.61"]
[White "Arab, Adlane"]
[Black "Koumba, Mounguen Jose Evrard"]
[Result "1-0"]
[ECO "A70"]
[WhiteElo "2477"]
[BlackElo "1957"]
[Annotator "TA"]
[PlyCount "101"]
[EventDate "2024.09.05"]
[EventType "team-tourn"]
[EventCountry "HUN"]
[SourceTitle "playchess.com"]
[Source "ChessBase"]
[SourceQuality "1"]
[WhiteTeam "Algeria"]
[BlackTeam "Gabon"]
[WhiteTeamCountry "ALG"]
[BlackTeamCountry "GAB"]
[TimeControl "40/5400+30:1800+30"]

{[%evp 23,101,10,18,0,131,145,178,183,177,181,217,191,208,158,157,156,164,165,153,24,67,78,72,16,41,39,36,44,50,34,39,0,0,-32,-37,-36,-27,-70,12,9,8,12,18,18,18,18,27,8,8,8,8,8,17,8,135,159,528,504,370,217,543,517,765,702,1481,1310,1920,1761,2185,1748,2522,2243,29975,1605,29978,29979,29980,29981,29982,29982]} 1. d4 {[%cal Bd2d4,Bd4d5][%mdl 32]} Nf6 2. c4 g6 3. Nc3 c5 4. d5 Bg7 5. e4 d6 6. Bd3 O-O 7. h3 e6 8. Nf3 exd5 9. cxd5 b5 10. Nxb5 {[%cal Bc3b5,Bb5a3,Ba3c4][%mdl 32]} Re8 11. O-O Nxe4 12. Re1 a6 13. Na3 f5 (13... Nf6 $1 $11) 14. Nc4 $16 Nf6 15. Rxe8+ {White is clearly better.} Nxe8 16. Bg5 Nf6 17. Qb3 {Dodges Bb7. Re1 would now be deadly.} Nbd7 18. Re1 Rb8 19. Qd1 {White is much more active.} Nb6 {[#]} 20. Na5 Bd7 21. b3 (21. Bxa6 Ra8 22. Nc6 Qc7 $16 (22... Bxc6 23. dxc6 Rxa6 24. Re6 $11)) (21. Nc6 $16 Bxc6 22. dxc6) 21... Qc7 22. Qd2 (22. Bxa6 Ra8 23. Re7 h6 $17 (23... Rxa6 24. Qe2 $14)) 22... Re8 {[#]} 23. Rxe8+ (23. Bxa6 Ne4 24. Qd3 c4 25. Nxc4 (25. Bxc4 $2 Qc5 $19) 25... Ra8 $17) (23. Bxf6 $1 $16 Bxf6 24. Rxe8+ (24. Bxa6 Ra8 $16) 24... Bxe8 25. Bxa6) 23... Bxe8 $11 24. Bxf6 Bxf6 25. Bxa6 Bf7 26. Bc4 Qe7 27. Qd3 {Hoping for Nc6.} (27. a4 {with more complications.} Qe4 28. h4 Kg7 29. Ng5) 27... Qe4 28. a4 Qxd3 (28... Nxd5 29. Qd2 Bc3 30. Qd1 Bxa5 31. Ng5 $18) 29. Bxd3 Bxd5 30. Nc4 Nxc4 ({Black should try} 30... Nc8 $1 $15) 31. Bxc4 Bxc4 32. bxc4 $15 {[%mdl 4096] Endgame. And now a5 would win. KB-KN} Bc3 33. Kf1 Kf8 34. Ke2 Ke7 35. Kd3 Bf6 36. g4 (36. a5 Kd7 $16) 36... Kd7 37. gxf5 gxf5 38. Ke3 Be5 (38... Kc6 $11 {remains equal.}) 39. Nh4 $16 Bd4+ $2 {This move loses the game for Black.} (39... Ke6 $16 {is more resistant.} 40. a5 d5) 40. Kf3 $18 f4 41. Ng2 (41. Kxf4 Bxf2 42. Nf5 Kc6 $14) (41. Nf5 $142 {[%cal Of5d4] aiming for Nxd4!} Be5 42. Ke4) 41... Kc6 $2 (41... d5 {is a better chance.}) 42. Nxf4 {Nd5 is the strong threat.} Kb6 43. Ne6 {Black must now prevent Nxd4.} Bb2 44. Ke4 Kc6 45. a5 {[%cal Ba4a5,Ba5a6][%mdl 32]} Bc3 46. a6 {Threatens to win with a7.} Bf6 47. f4 {[%cal Bf2f4,Bf4f5,Bf5f6][%mdl 32]} Kb6 48. Ng5 (48. Nf8 $142 Bb2 49. Nxh7 (49. Kd5 h5 $18) 49... Kc6 50. a7 Kb7 51. Kd5 Kxa7 52. f5 (52. Kxd6 Kb6 $18) 52... Kb6 53. f6 (53. Kxd6 Bc1 $18)) 48... Kxa6 49. Nxh7 {White mates.} Be7 50. f5 Ka5 51. f6 {Weighted Error Value: White=0.18 (very precise) /Black=0.72.  Loses game:     	---       	Black=1      Mistake:       	White=3     	Black=4      Inaccurate:     	White=3     	Black=3      OK:         	White=11    	Black=12     Best:        	White=4     	---} 1-0

[Event "45th FIDE Olympiad 2024"]
[Site "Budapest"]
[Date "2024.09.11"]
[Round "1.62"]
[White "Giron Chavez, David Emanuel"]
[Black "Indjic, Aleksandar"]
[Result "0-1"]
[ECO "E49"]
[WhiteElo "2065"]
[BlackElo "2611"]
[Annotator "TA"]
[PlyCount "80"]
[EventDate "2024.09.05"]
[EventType "team-tourn"]
[EventCountry "HUN"]
[SourceTitle "playchess.com"]
[Source "ChessBase"]
[SourceQuality "1"]
[WhiteTeam "Guatemala"]
[BlackTeam "Serbia"]
[WhiteTeamCountry "GUA"]
[BlackTeamCountry "SRB"]
[TimeControl "40/5400+30:1800+30"]

{[%evp 19,80,2,11,0,19,0,7,11,0,-37,0,-37,0,-14,0,0,0,0,4,0,13,10,0,-37,-29,-31,-20,-18,0,-79,-80,-128,-129,-344,-262,-227,-236,-291,-289,-288,-267,-295,-291,-286,-261,-290,-296,-381,-386,-425,-378,-786,-783,-29983,-29983,-29985,-29986,-29986,-29987,-29987,-1014,-29986,-304]} 1. d4 {[%emt 0:00:07]} Nf6 {[%emt 0:00:39]} 2. c4 {[%emt 0:00:23]} e6 {[%emt 0:00:24]} 3. Nc3 {[%emt 0:00:31]} Bb4 {[%emt 0:02:40]} 4. e3 {[%emt 0:01:14]} O-O {[%emt 0:00:27]} 5. Bd3 {[%emt 0:00:58]} d5 {[%emt 0:00:23]} 6. a3 {[%emt 0:02:01]} Bxc3+ {[%emt 0:02:13]} 7. bxc3 {[%emt 0:00:08]} dxc4 {[%emt 0:00:04]} 8. Bxc4 {[%emt 0:00:12]} c5 {[%emt 0:00:03]} 9. Ne2 {[%emt 0:03:29]} Nc6 {[%emt 0:05:30]} 10. O-O {[%emt 0:00:57]} e5 {[%emt 0:00:06]} 11. a4 {[%emt 0:11:41]} Qc7 {[%emt 0:02:00]} 12. Ba3 {[%emt 0:04:20]} Na5 {[%emt 0:02:13]} 13. Ba2 {[%emt 0:07:20] The position is equal.} b6 {[%emt 0:00:49]} 14. Rc1 {[%emt 0:14:34]} Rd8 {[%emt 0:01:30]} 15. Qc2 {[%emt 0:14:05]} Ba6 {[%emt 0:00:37]} 16. Rfd1 {[%emt 0:04:41]} Bc4 {[%emt 0:13:17]} 17. Bxc4 {[%emt 0:06:22]} Nxc4 {[%emt 0:00:19]} 18. Qa2 {[%emt 0:00:04]} Nxa3 {[%emt 0:05:37]} 19. Qxa3 {[%emt 0:00:08]} Ne4 {[%emt 0:01:31]} 20. f3 {[%emt 0:02:20]} Nd6 {[%emt 0:00:14][%cal Be4d6,Bd6f5,Bf5e3][%mdl 32]} 21. Kf2 {[%emt 0:05:28]} Qe7 {[%emt 0:03:07] [#] ...cxd4 is the strong threat.} 22. Qa2 {[%emt 0:04:41]} e4 {[%emt 0:08:40] aiming for ...exf3.} 23. dxc5 {[%emt 0:06:02]} Nf5 {[%emt 0:04:34] Threatens to win with ...exf3.} 24. f4 {[%emt 0:01:27]} (24. Nd4 $11 {remains equal.} Qh4+ (24... Qxc5 25. Nxf5 Qxf5 26. Qb1 $11) 25. Kg1 Nxe3 26. Re1 bxc5 27. Nc6 (27. Rxe3 cxd4 28. cxd4 exf3 $17)) 24... Rd3 $17 {[%emt 0:01:14] Black is more active.} (24... bxc5 25. Rd5 g6 26. Ng3 $11) 25. Nd4 {[%emt 0:03:26]} (25. Qb1 $142) 25... Nxe3 {[%emt 0:07:08]} (25... Qxc5 $6 26. Qb1 $11) 26. Re1 {[%emt 0:02:19] [#] This move loses the game for White.} (26. Rxd3 $17 {is the only way for White.} exd3 27. Qd2) 26... Qh4+ {[%emt 0:01:54]} 27. Kg1 {[%emt 0:00:15]} bxc5 {[%emt 0:00:26]} 28. Nb3 {[%emt 0:04:00]} Rc8 {[%emt 0:03:30]} ({Resist} 28... Qxf4 29. Nxc5 Rd6 (29... Ng4 $2 30. g3 $19) 30. Qe2 Nxg2 (30... Ng4 31. g3 $17) 31. Qxe4 $19 (31. Qxg2 $2 Rg6 $19)) 29. g3 {[%emt 0:01:06] White is weak on the light squares} Qh3 {[%emt 0:00:34]} 30. Qf2 {[%emt 0:00:20]} Ng4 {[%emt 0:00:11]} 31. Qg2 {[%emt 0:00:16]} Qxg2+ {[%emt 0:00:07]} 32. Kxg2 {[%emt 0:00:07]} f5 {[%emt 0:00:02] Hoping for ...Rb8.} 33. h3 {[%emt 0:00:38]} Ne3+ {[%emt 0:00:25]} 34. Kf2 {[%emt 0:00:33]} Nc4 {[%emt 0:00:07]} 35. Kg2 $2 {[%emt 0:01:01]} (35. g4) 35... Rb8 $19 {[%emt 0:00:20]} 36. Nxc5 {[%emt 0:00:42]} Rb2+ {[%emt 0:00:05]} 37. Kh1 {[%emt 0:00:05]} Rdd2 {[%emt 0:01:22]} 38. Rcd1 {[%emt 0:00:47]} Rh2+ {[%emt 0:00:14]} 39. Kg1 {[%emt 0:00:13]} Rbg2+ {[%emt 0:00:08]} 40. Kf1 {[%emt 0:00:37]} Nd2+ $2 {[%emt 0:00:05] Weighted Error Value: White=0.63/Black=0.11 (very precise) .  Loses game:     	White=1     	---        Mistake:       	White=3     	---        Inaccurate:     	White=4     	Black=1      OK:         	White=7     	Black=9      Best:        	White=1     	Black=4} (40... e3 {mates} 41. a5 Rxg3 (41... Nxa5 $2 42. Rd8+ Kf7 43. Rd7+ Kg6 44. Rd6+ Kh5 45. Ne6 $19) (41... e2+ {gets mated.} 42. Rxe2 Rxe2 43. Rd8+ Kf7 44. Rd7+ Kg6 45. Rd3 Nd2+ 46. Rxd2 Rxd2 47. Kg1 Rdg2+ 48. Kf1 Rc2 49. Kg1 Rhd2 50. Nd3 Rd1+ 51. Ne1 Rxe1#) 42. Ne4 fxe4 (42... Nd2+ $2 43. Rxd2 Rf3+ 44. Kg1 $19) 43. Rd8+ Kf7 44. Rd7+ Ke8 45. Rd8+ Kxd8 46. Rd1+ Nd2+ 47. Rxd2+ exd2 48. f5 d1=Q#) 0-1

[Event "45th FIDE Olympiad 2024"]
[Site "Budapest"]
[Date "2024.09.11"]
[Round "1.62"]
[White "Bongo Akanga Ndjila, Barthelemy"]
[Black "Djabri, Massinas"]
[Result "0-1"]
[ECO "E94"]
[WhiteElo "1894"]
[BlackElo "2280"]
[Annotator "ChessBase"]
[PlyCount "66"]
[EventDate "2024.09.05"]
[EventType "team-tourn"]
[EventCountry "HUN"]
[SourceTitle "playchess.com"]
[Source "ChessBase"]
[SourceQuality "1"]
[WhiteTeam "Gabon"]
[BlackTeam "Algeria"]
[WhiteTeamCountry "GAB"]
[BlackTeamCountry "ALG"]
[TimeControl "40/5400+30:1800+30"]

1. d4 Nf6 2. c4 g6 3. Nc3 Bg7 4. e4 d6 5. Be2 O-O 6. Nf3 Nbd7 7. O-O e5 8. d5 Nc5 9. Nd2 a5 10. Re1 Nfd7 11. Nf1 f5 12. exf5 gxf5 13. f4 Ne4 14. fxe5 Bxe5 15. Nxe4 fxe4 16. Bh6 Rxf1+ 17. Rxf1 Qh4 18. g3 Qxh6 19. Bg4 Nb6 20. Bf5 Bxf5 21. Rxf5 Qg6 22. Qf1 Nxc4 23. Qh3 Ne3 24. Rf2 Ng4 25. Re2 Bd4+ 26. Kg2 Rf8 27. Rf1 Rxf1 28. Kxf1 Qf5+ 29. Ke1 e3 30. Rg2 h5 31. Ke2 Bxb2 32. Qh4 Bf6 33. Qh3 Qxd5 0-1